bitfinex/quotes_SOLUSD_20240717
["timestamp","ask_amount","ask_price","bid_price","bid_amount"]
[1721204671115,6.2201,160.77,160.72,6.2219]
[1721204671315,6.2204,160.76,160.7,45.0]
[1721204671516,6.2201,160.77,160.72,6.2219]
[1721204671709,6.2197,160.78,160.73,6.2214]
[1721204672010,0.8364381,160.79,160.77,6.2199]
[1721204672212,0.8364381,160.79,160.76,6.2203]
[1721204672413,0.8364381,160.79,160.77,6.22]
[1721204672622,0.8364381,160.79,160.75,16.2697]
[1721204673119,6.22,160.77,160.73,6.2215]
[1721204673324,0.8364381,160.79,160.72,6.2218]
[1721204673325,6.2204,160.76,160.72,6.2218]
[1721204673503,8.61107143,160.79,160.71,15.8275]
[1721204673713,6.2197,160.78,160.73,6.2213]
[1721204673920,6.2201,160.77,160.73,6.2215]
[1721204674130,0.8364381,160.79,160.74,6.2211]
[1721204674131,6.2197,160.78,160.74,6.2211]
[1721204674430,0.8364381,160.79,160.76,6.2204]
[1721204674731,6.2197,160.78,160.74,6.2212]
[1721204674932,0.8364381,160.79,160.71,15.8275]
[1721204675115,6.2204,160.76,160.71,22.0495]
[1721204675322,1.55519531,160.75,160.71,15.8275]
[1721204675522,1.55541484,160.77,160.71,15.8275]
[1721204675839,6.2213,160.74,160.71,15.8275]
[1721204676054,7.77695806,160.73,160.66,6.0031]
[1721204676206,7.77768023,160.72,160.67,6.2239]
[1721204676412,6.222,160.72,160.68,6.2235]
[1721204676613,6.222,160.72,160.66,21.3564]
[1721204676815,6.2217,160.73,160.66,21.3564]
[1721204677037,6.2228,160.7,160.66,15.3533]
[1721204677344,1.55575867,160.75,160.68,2.2219741]
[1721204677510,6.2208,160.76,160.67,6.5569]
[1721204677710,1.55534157,160.75,160.66,15.3533]
[1721204677951,31.38534157,160.75,160.66,15.3533]
[1721204678114,6.2223,160.71,160.66,15.3533]
[1721204678309,7.77855782,160.7,160.65,0.32439352]
[1721204678526,6.2228,160.7,160.65,0.99780878]
[1721204678819,1.72593968,160.69,160.59,13.05793779]
[1721204679034,0.17,160.68,160.59,6.47963779]
[1721204679232,1.5561249,160.68,160.62,6.2258]
[1721204679648,29.83,160.72,160.59,6.47963779]
[1721204679954,6.2235,160.68,160.59,6.47963779]
[1721204680167,6.2239,160.67,160.62,6.2258]
[1721204680843,6.2244,160.66,160.59,6.47963779]
[1721204681048,6.2239,160.67,160.59,6.47963779]
[1721204681246,1.55629405,160.68,160.63,6.2253]
[1721204681247,7.7798586,160.68,160.63,6.2253]
[1721204681761,6.2238,160.68,160.64,0.9981002]
[1721204681939,37.60926085,160.69,160.64,6.225]
[1721204682142,6.2237,160.68,160.59,6.47963779]
[1721204682342,7.40408498,160.68,160.6,45.0]
[1721204682542,6.2236,160.68,160.6,45.0]
[1721204682741,29.83,160.69,160.6,45.0]
[1721204683468,6.2235,160.68,160.63,6.2254]
[1721204683842,6.2235,160.68,160.6,45.0]
[1721204683843,29.83,160.72,160.6,45.0]
[1721204684069,29.83,160.72,160.61,0.34]
[1721204684276,29.83,160.72,160.62,0.46396017]
[1721204684451,1.55585435,160.71,160.61,0.34]
[1721204684643,1.55586102,160.7,160.61,0.34]
[1721204685566,6.2227,160.7,160.65,6.2246]
[1721204685766,6.2228,160.7,160.61,0.34]
[1721204686482,6.2232,160.69,160.61,0.34]
[1721204686794,6.2232,160.69,160.64,6.225]
[1721204686959,6.2236,160.68,160.63,6.2254]
[1721204687159,6.2236,160.68,160.64,45.0]
[1721204687476,1.55573534,160.71,160.64,45.0]
[1721204687653,6.2228,160.7,160.65,6.2246]
[1721204687854,6.2232,160.69,160.64,51.2249]
[1721204688090,6.2237,160.68,160.61,0.17]
[1721204688262,6.2237,160.68,160.63,6.2253]
[1721204688663,6.2239,160.67,160.62,6.2257]
[1721204688884,6.2246,160.66,160.59,6.47919389]
[1721204689183,1.55613223,160.68,160.59,6.47919389]
[1721204689479,7.78033856,160.67,160.62,6.2258]
[1721204689788,6.2243,160.66,160.61,6.2262]
[1721204690660,7.78083284,160.65,160.6,6.2266]
[1721204690859,6.2247,160.65,160.6,6.2266]
[1721204691173,7.78138347,160.64,160.59,6.47919389]
[1721204691373,6.2251,160.64,160.59,12.70589389]
[1721204691554,29.83,160.69,160.59,6.47919389]
[1721204691555,1.18005198,160.63,160.59,6.47919389]
[1721204691978,6.2262,160.62,160.57,6.2275]
[1721204692257,7.78259952,160.62,160.57,6.2275]
[1721204692455,6.2259,160.62,160.58,0.99959138]
[1721204692688,6.2255,160.63,160.58,7.22689138]
[1721204692861,1.55664325,160.62,160.58,6.2273]
[1721204693187,1.55664325,160.62,160.55,6.48129594]
[1721204693188,1.55663366,160.64,160.6,6.2266]
[1721204693479,6.2256,160.63,160.59,0.99931125]
[1721204693679,1.55663366,160.64,160.55,6.48129594]
[1721204693886,6.2255,160.63,160.58,6.227]
[1721204694304,7.78147685,160.64,160.59,6.2268]
[1721204694587,6.2254,160.63,160.59,6.2268]
[1721204694982,6.2254,160.63,160.55,6.48129594]
[1721204695184,6.2254,160.63,160.56,45.0]
[1721204695377,1.55646215,160.62,160.56,45.0]
[1721204695573,6.2254,160.64,160.56,45.0]
[1721204695771,1.55665748,160.65,160.6,6.2266]
[1721204696076,29.83,160.66,160.56,45.0]
[1721204696077,7.7814483,160.64,160.59,6.2268]
[1721204696262,1.5563483,160.64,160.6,6.2266]
[1721204696459,7.78113471,160.65,160.61,6.226]
[1721204696660,7.78145929,160.64,160.56,45.0]
[1721204697264,1.55635929,160.64,160.6,6.2266]
[1721204697470,1.55646697,160.65,160.62,6.2257]
[1721204697669,6.224,160.67,160.62,6.2257]
[1721204697870,1.55624102,160.66,160.62,6.2257]
[1721204698293,7.78064102,160.66,160.61,6.2261]
[1721204698669,7.78054102,160.66,160.61,6.2261]
[1721204698872,1.55630871,160.65,160.61,6.2261]
[1721204699784,1.55630881,160.64,160.6,6.2265]
[1721204699995,6.2247,160.65,160.6,6.2265]
[1721204700173,7.7815648,160.64,160.6,6.2265]
[1721204700376,6.2259,160.62,160.57,6.2274]
[1721204700577,1.55665821,160.61,160.58,6.2273]
[1721204700891,31.38665821,160.65,160.59,6.2269]
[1721204701097,1.55649317,160.64,160.55,6.48129594]
[1721204701393,6.2255,160.63,160.59,6.2269]
[1721204701606,1.55663109,160.62,160.59,6.2269]
[1721204701824,1.55663109,160.62,160.55,6.48129594]
[1721204701984,6.2264,160.61,160.57,6.2277]
[1721204702185,1.55684664,160.6,160.56,6.228]
[1721204702708,1.55681618,160.64,160.55,6.48129594]
[1721204702883,6.2264,160.61,160.56,6.2281]
[1721204703099,1.55691263,160.6,160.56,6.2281]
[1721204703308,1.55691263,160.6,160.57,6.2277]
[1721204703821,1.55683064,160.64,160.55,6.48129594]
[1721204704394,6.2263,160.61,160.56,6.228]
[1721204704610,6.2259,160.62,160.57,6.2278]
[1721204704790,1.55675223,160.61,160.55,6.48129594]
[1721204704989,7.78352021,160.6,160.55,12.70979594]
[1721204705192,6.2271,160.59,160.54,6.2288]
[1721204705494,1.55699056,160.6,160.56,6.228]
[1721204705694,46.3944,160.65,160.57,0.99977688]
[1721204705891,1.55661509,160.64,160.58,6.2273]
[1721204706105,1.55661509,160.64,160.52,6.47832173]
[1721204706414,1.55661509,160.64,160.58,6.2272]
[1721204706824,1.55661509,160.64,160.52,6.47832173]
[1721204706825,6.2269,160.6,160.52,6.47832173]
[1721204707114,1.55686207,160.59,160.55,6.2284]
[1721204707321,1.55686207,160.59,160.52,6.47832173]
[1721204707322,7.78416207,160.59,160.54,6.2288]
[1721204707527,6.2274,160.58,160.53,6.2292]
[1721204707684,7.7849033,160.57,160.52,6.47832173]
[1721204707885,1.5571033,160.57,160.52,6.47832173]
[1721204708118,1.5571033,160.57,160.51,6.23]
[1721204708308,6.2301,160.51,160.48,6.47563011]
[1721204708510,6.2297,160.52,160.48,6.47563011]
[1721204708697,1.55771673,160.52,160.4,15.0978]
[1721204708897,1.55764474,160.51,160.47,6.2316]
[1721204709305,7.78774474,160.51,160.4,15.0978]
[1721204709504,6.2314,160.48,160.44,6.4745089]
[1721204709702,6.2309,160.5,160.44,6.2326]
[1721204710008,1.55764474,160.51,160.44,15.5816]
[1721204710009,7.78919046,160.49,160.44,15.5816]
[1721204710203,1.5580327,160.48,160.44,15.5816]
[1721204711323,31.3880327,160.48,160.41,6.476151]
[1721204711524,6.2333,160.43,160.41,6.476151]
[1721204711727,1.55862604,160.42,160.37,15.588]
[1721204711939,1.55848735,160.44,160.41,6.2336]
[1721204712103,6.2012,160.46,160.42,6.2335]
[1721204712297,1.55823907,160.45,160.42,6.2335]
[1721204712725,1.55823907,160.45,160.41,6.2339]
[1721204713121,6.2317,160.47,160.42,6.2335]
[1721204713122,1.55831753,160.47,160.42,6.2335]
[1721204713341,1.55831753,160.47,160.37,6.47604019]
[1721204713342,1.55817151,160.47,160.43,21.8161]
[1721204713504,1.55817151,160.47,160.4,15.5857]
[1721204713828,1.55822775,160.49,160.42,15.5832]
[1721204713999,6.2318,160.47,160.42,15.5832]
[1721204714202,7.79068935,160.46,160.4,6.2341]
[1721204714517,1.55828235,160.49,160.37,6.47604019]
[1721204714702,1.55813593,160.48,160.38,65.34]
[1721204714903,1.55813593,160.48,160.39,0.75488424]
[1721204715231,37.69292886,160.54,160.4,21.3083]
[1721204715394,37.69292886,160.54,160.41,20.34]
[1721204715600,7.86292886,160.54,160.5,6.2304]
[1721204715801,1.55750261,160.55,160.51,1.00106124]
[1721204716019,1.55750261,160.55,160.53,6.2293]
[1721204716324,1.55733989,160.56,160.52,6.2296]
[1721204716539,1.55720424,160.57,160.53,6.2291]
[1721204716848,1.55713852,160.63,160.57,6.2277]
[1721204717137,1.55713852,160.63,160.54,45.0]
[1721204717138,1.55702815,160.62,160.52,16.369]
[1721204717328,31.38702815,160.62,160.52,16.369]
[1721204717532,6.2281,160.57,160.51,6.23]
[1721204717717,1.55718727,160.56,160.52,6.2297]
[1721204717909,1.55718479,160.61,160.47,15.3322]
[1721204718241,7.78416135,160.6,160.54,6.2289]
[1721204718539,7.78416135,160.6,160.55,6.2285]
[1721204718918,1.55692626,160.68,160.56,0.65182145]
[1721204719119,22.42963364,160.69,160.52,20.0]
[1721204719120,1.55654248,160.66,160.52,20.0]
[1721204719414,6.2258,160.63,160.53,45.34]
[1721204719609,1.55661413,160.62,160.53,45.0]
[1721204719827,1.55682276,160.66,160.53,45.0]
[1721204720025,6.2252,160.64,160.59,6.2268]
[1721204720274,1.55663944,160.63,160.59,6.2268]
[1721204720426,7.78203944,160.63,160.58,6.2273]
[1721204720627,1.5566394,160.66,160.61,6.2259]
[1721204720829,7.7810394,160.66,160.6,6.2262]
[1721204721333,7.7810394,160.66,160.61,6.2261]
[1721204721519,7.7810394,160.66,160.53,74.83]
[1721204721520,1.5566394,160.66,160.62,6.2258]
[1721204721727,1.556318,160.67,160.57,16.296]
[1721204721916,1.55610912,160.71,160.58,45.0]
[1721204722237,6.2236,160.68,160.58,45.0]
[1721204722535,6.2244,160.66,160.6,6.2263]
[1721204722736,6.2251,160.64,160.59,6.227]
[1721204723118,1.55637862,160.63,160.58,51.2273]
[1721204723323,6.2259,160.62,160.58,45.0]
[1721204723711,6.2255,160.63,160.58,45.0]
[1721204723908,0.17,160.66,160.58,45.0]
[1721204724113,0.34,160.66,160.59,6.2269]
[1721204724743,0.34,160.67,160.59,6.2269]
[1721204724918,1.89650465,160.67,160.59,6.2269]
[1721204725224,1.55650465,160.67,160.62,6.2255]
[1721204725429,1.55628841,160.68,160.62,6.2255]
[1721204725637,1.55614519,160.71,160.58,45.0]
[1721204725848,1.55599885,160.7,160.63,45.0]
[1721204726029,6.2239,160.68,160.59,0.34]
[1721204726229,1.55613561,160.71,160.65,6.2245]
[1721204726420,1.18031022,160.7,160.65,6.2245]
[1721204726920,7.40331022,160.7,160.64,6.225]
[1721204727432,1.18048389,160.69,160.65,6.9100083]
[1721204727639,1.18048389,160.69,160.65,6.2246]
[1721204727846,1.18048389,160.69,160.64,6.225]
[1721204728050,1.55596274,160.71,160.67,6.2237]
[1721204728215,1.55596274,160.71,160.59,0.34]
[1721204728541,15.5513,160.76,160.59,0.34]
[1721204728542,1.55579764,160.74,160.62,15.7641]
[1721204728863,7.7771324,160.74,160.69,6.2229]
[1721204729146,1.5555537,160.75,160.71,6.2223]
[1721204729326,7.77542562,160.77,160.64,28.72]
[1721204729520,1.5552654,160.76,160.65,65.34]
[1721204729719,1.5552654,160.76,160.71,6.2223]
[1721204730349,6.22,160.77,160.72,6.2217]
[1721204730558,6.2197,160.78,160.73,6.2215]
[1721204730728,1.55528648,160.77,160.65,65.34]
[1721204730930,6.2211,160.75,160.7,6.2224]
[1721204731224,7.77587101,160.76,160.7,6.2224]
[1721204731548,1.55537101,160.76,160.65,65.34]
[1721204731749,1.5555323,160.78,160.65,65.34]
[1721204731958,1.72547055,160.77,160.65,65.34]
[1721204732131,1.72553232,160.76,160.65,65.0]
[1721204732327,6.2217,160.73,160.68,6.2235]
[1721204732526,6.2217,160.73,160.65,65.0]
[1721204732527,1.55565898,160.72,160.62,15.7641]
[1721204733029,6.223,160.7,160.65,6.2246]
[1721204733222,1.55592577,160.72,160.62,15.7641]
[1721204733422,6.223,160.7,160.66,6.2243]
[1721204733649,6.2232,160.69,160.64,6.2249]
[1721204733858,6.2232,160.69,160.65,0.80967639]
[1721204734051,6.2228,160.7,160.65,7.03427639]
[1721204734246,6.2232,160.69,160.65,0.80967639]
[1721204734426,1.55591162,160.68,160.63,6.2253]
[1721204734625,1.55603576,160.72,160.63,6.2253]
[1721204734825,0.34,160.71,160.63,6.2253]
[1721204735058,6.2232,160.69,160.64,6.225]
[1721204735352,1.55613129,160.7,160.62,15.7641]
[1721204735530,6.2236,160.68,160.63,6.2251]
[1721204735729,1.55606099,160.69,160.64,6.2249]
[1721204736038,7.77946099,160.69,160.64,6.2249]
[1721204736242,7.77963094,160.68,160.63,6.2254]
[1721204736445,1.55606184,160.67,160.58,18.20064014]
[1721204736640,1.55624568,160.7,160.58,18.20064014]
[1721204736844,6.2246,160.66,160.61,6.2262]
[1721204737022,1.72625942,160.69,160.58,15.9513]
[1721204737242,6.2236,160.68,160.63,6.2251]
[1721204737440,7.7800614,160.67,160.62,6.2257]
[1721204737763,1.55618491,160.66,160.58,15.9513]
[1721204737963,15.5583,160.69,160.58,15.9513]
[1721204738257,1.7264456,160.68,160.58,15.9513]
[1721204738423,17.28711096,160.67,160.58,15.9513]
[1721204738632,6.2262,160.62,160.58,15.9513]
[1721204738960,6.2262,160.62,160.58,6.2274]
[1721204739181,6.2262,160.62,160.53,21.80985462]
[1721204739182,6.2259,160.62,160.53,21.80985462]
[1721204739354,7.782911,160.61,160.56,6.2281]
[1721204739556,1.55673546,160.6,160.56,6.2281]
[1721204739864,1.55673546,160.6,160.53,21.80985462]
[1721204740056,6.3471,160.63,160.53,6.47365462]
[1721204740240,1.89696781,160.62,160.53,6.47365462]
[1721204740637,6.2271,160.59,160.54,6.2286]
[1721204740947,6.2279,160.57,160.53,6.47365462]
[1721204741556,6.2274,160.59,160.53,12.70285462]
[1721204741773,7.78459595,160.58,160.53,12.70285462]
[1721204742064,1.5571348,160.57,160.53,12.70285462]
[1721204742374,1.5571348,160.57,160.54,6.2289]
[1721204742543,1.89708788,160.62,160.53,6.47365462]
[1721204742749,1.55708788,160.62,160.49,16.5738]
[1721204742955,1.55708788,160.62,160.5,65.34]
[1721204743164,7.78288788,160.62,160.57,6.2275]
[1721204744280,6.2266,160.6,160.55,6.2282]
[1721204744768,6.2263,160.61,160.56,6.2281]
[1721204745066,1.72686072,160.6,160.53,6.47616927]
[1721204745279,1.72686072,160.6,160.53,12.70546927]
[1721204745280,6.2274,160.58,160.53,12.70546927]
[1721204745479,1.5570626,160.57,160.53,6.47616927]
[1721204745644,6.2278,160.57,160.53,6.47616927]
[1721204745841,1.55710569,160.56,160.53,6.47616927]
[1721204746146,18.06310099,160.59,160.49,6.2308]
[1721204746345,45.34,160.58,160.5,6.47494501]
[1721204746589,6.2293,160.53,160.5,6.47494501]
[1721204746789,6.229,160.54,160.5,6.47494501]
[1721204746959,1.55750446,160.53,160.5,6.47494501]
[1721204747468,7.78710446,160.53,160.5,6.47494501]
[1721204747798,1.55760172,160.52,160.5,6.47494501]
[1721204748079,7.78730172,160.52,160.5,6.47494501]
[1721204748290,1.55760216,160.51,160.5,6.47494501]
[1721204749091,6.2294,160.53,160.5,6.47494501]
[1721204749258,1.55765076,160.52,160.5,6.47494501]
[1721204750580,7.78735076,160.52,160.5,6.47494501]
[1721204750776,1.55766467,160.51,160.5,6.47494501]
[1721204751083,6.2297,160.52,160.5,6.47494501]
[1721204751253,6.2294,160.53,160.5,6.47494501]
[1721204751459,1.5576635,160.52,160.5,6.47494501]
[1721204751674,1.55766442,160.57,160.53,6.2293]
[1721204751873,1.55709018,160.57,160.5,6.47494501]
[1721204752085,6.2277,160.58,160.53,6.2292]
[1721204752290,7.78497834,160.57,160.52,6.2296]
[1721204752492,7.40754147,160.56,160.52,15.5736]
[1721204752697,6.2283,160.56,160.51,6.23]
[1721204753094,53.9543,160.63,160.5,6.47494501]
[1721204753095,7.78598317,160.55,160.5,6.47494501]
[1721204753294,6.2278,160.57,160.52,6.2296]
[1721204753503,7.78497926,160.57,160.52,6.2296]
[1721204753682,6.2282,160.56,160.52,6.2296]
[1721204754083,6.2282,160.56,160.52,6.2297]
[1721204754379,6.2282,160.56,160.5,6.47494501]
[1721204754380,1.55720085,160.55,160.5,6.47494501]
[1721204754682,6.2301,160.51,160.5,6.47494501]
[1721204755081,6.2298,160.52,160.5,6.47494501]
[1721204755282,1.55765872,160.51,160.5,6.47494501]
[1721204755905,6.229,160.54,160.47,15.5787]
[1721204756092,1.55764591,160.53,160.49,6.2308]
[1721204756297,1.55764591,160.53,160.48,6.2312]
[1721204756298,7.78704591,160.53,160.48,6.2312]
[1721204756504,6.2298,160.52,160.48,6.2312]
[1721204756701,1.5577253,160.51,160.48,6.2312]
[1721204756901,1.5577253,160.51,160.49,6.2308]
[1721204757301,6.2309,160.49,160.47,6.47516765]
[1721204757501,1.55771532,160.53,160.44,15.5816]
[1721204757502,6.2306,160.5,160.45,6.2324]
[1721204757833,7.78887773,160.49,160.44,28.29049475]
[1721204758198,6.2313,160.48,160.44,28.29049475]
[1721204758400,1.55809536,160.47,160.44,28.29049475]
[1721204758696,6.231,160.49,160.45,6.2323]
[1721204759010,1.55803762,160.48,160.45,6.2323]
[1721204759310,1.55803762,160.48,160.44,22.05779475]
[1721204759512,1.55803762,160.48,160.44,28.29029475]
[1721204759817,7.78933762,160.48,160.44,28.29029475]
[1721204759998,1.17831279,160.47,160.44,28.29029475]
[1721204760309,6.2308,160.5,160.45,6.2322]
[1721204760508,1.72803118,160.51,160.46,15.5796]
[1721204760696,7.78823118,160.51,160.47,6.2314]
[1721204760895,7.78823118,160.51,160.46,21.8115]
[1721204761088,6.231,160.49,160.42,51.4762949]
[1721204761289,6.2298,160.52,160.48,6.2312]
[1721204761594,1.55772207,160.51,160.48,6.2312]
[1721204761800,6.2305,160.5,160.44,15.5818]
[1721204762116,6.2305,160.5,160.42,51.4762949]
[1721204762117,1.55794356,160.54,160.46,15.5795]
[1721204762295,6.2294,160.53,160.46,15.5795]
[1721204762489,1.17850227,160.53,160.49,6.2307]
[1721204763015,1.55756595,160.57,160.52,6.2297]
[1721204763210,6.1015,160.6,160.55,6.2285]
[1721204763211,1.55722475,160.58,160.55,6.2285]
[1721204763518,7.78432475,160.59,160.54,6.2286]
[1721204763819,7.78432475,160.59,160.54,21.8004]
[1721204763993,6.1015,160.6,160.54,15.5718]
[1721204764195,1.5569155,160.59,160.51,15.575]
[1721204764499,6.2283,160.56,160.51,21.805]
[1721204764820,1.55726921,160.55,160.51,21.805]
[1721204765347,6.2279,160.57,160.51,15.575]
[1721204765499,7.78546684,160.56,160.51,15.575]
[1721204765696,1.55726707,160.61,160.53,15.5728]
[1721204765889,1.89707806,160.6,160.53,15.5728]
[1721204766097,6.2275,160.58,160.53,15.5728]
[1721204766294,7.78496358,160.57,160.53,21.8021]
[1721204766512,6.2274,160.58,160.53,21.8021]
[1721204766724,1.55716381,160.6,160.47,28.72]
[1721204766911,1.55691043,160.62,160.56,6.2279]
[1721204767208,1.55691043,160.62,160.48,0.34]
[1721204767503,1.55691043,160.62,160.47,65.34]
[1721204767917,6.2273,160.59,160.47,65.34]
[1721204768091,1.5570233,160.61,160.47,84.06]
[1721204768300,1.55685049,160.6,160.47,84.06]
[1721204768522,1.55684803,160.62,160.47,84.06]
[1721204768823,6.2273,160.59,160.54,6.2289]
[1721204769131,1.55684803,160.62,160.51,10.0]
[1721204769328,6.5206,160.65,160.59,6.2266]
[1721204769329,1.55666553,160.64,160.59,6.2266]
[1721204769520,1.55666553,160.64,160.54,16.1943]
[1721204769723,1.55666553,160.64,160.55,45.0]
[1721204769912,6.2263,160.61,160.56,6.2281]
[1721204770333,6.2259,160.62,160.57,6.2276]
[1721204770529,1.55667012,160.61,160.57,6.2276]
[1721204770931,1.55667052,160.64,160.6,6.2264]
[1721204771108,1.55667052,160.64,160.55,45.0]
[1721204771425,1.55667052,160.64,160.59,6.2269]
[1721204771727,6.2255,160.63,160.58,6.2273]
[1721204771906,7.78181124,160.64,160.59,0.99942115]
[1721204772109,1.55661124,160.64,160.6,6.2265]
[1721204772328,1.55661124,160.64,160.55,45.0]
[1721204772329,1.55661124,160.64,160.58,6.2272]
[1721204772525,6.2255,160.63,160.58,6.2272]
[1721204772717,6.2255,160.63,160.59,0.99934124]
[1721204772920,6.2255,160.63,160.56,0.99928189]
[1721204773336,6.2251,160.64,160.59,6.2269]
[1721204773524,1.55655358,160.63,160.59,6.2269]
[1721204773932,6.225,160.65,160.6,7.22578386]
[1721204774236,1.55655404,160.66,160.61,0.99886542]
[1721204774438,1.55655404,160.66,160.55,45.0]
[1721204774439,1.55655404,160.66,160.56,0.99883819]
[1721204774612,1.5562418,160.68,160.57,0.34]
[1721204774818,36.1863,160.69,160.62,6.2258]
[1721204774819,1.55617704,160.67,160.62,6.2258]
[1721204775224,7.78017704,160.67,160.63,0.89212618]
[1721204775423,7.77971238,160.68,160.64,6.225]
[1721204775733,6.2232,160.69,160.65,7.11618192]
[1721204775939,6.224,160.67,160.62,6.2258]
[1721204776519,1.55610069,160.71,160.64,6.225]
[1721204776729,6.2235,160.69,160.64,6.225]
[1721204777044,6.2235,160.69,160.65,7.22244431]
[1721204777227,6.2235,160.69,160.65,6.2245]
[1721204777922,6.2235,160.69,160.66,0.99789022]
[1721204778272,1.55597528,160.72,160.68,6.2232]
[1721204778552,1.55564366,160.72,160.65,45.0]
[1721204778742,1.55574312,160.75,160.67,6.2236]
[1721204778917,1.55574312,160.75,160.62,22.1894]
[1721204779116,6.2212,160.74,160.69,6.2228]
[1721204779547,6.2221,160.72,160.68,6.2234]
[1721204779929,1.55555065,160.71,160.63,45.34]
[1721204780142,1.55574402,160.74,160.63,45.99733981]
[1721204780374,1.55584138,160.73,160.65,6.2244]
[1721204780525,0.17,160.72,160.64,6.225]
[1721204780848,6.2238,160.68,160.63,6.2251]
[1721204781341,6.2238,160.68,160.64,6.225]
[1721204781342,6.2236,160.68,160.64,6.225]
[1721204781549,6.2232,160.69,160.64,6.225]
[1721204781748,6.2228,160.7,160.65,6.2245]
[1721204781930,1.55591121,160.69,160.66,6.2242]
[1721204782135,1.55591121,160.69,160.65,6.2247]
[1721204782337,1.55591121,160.69,160.66,6.2241]
[1721204782533,7.77829469,160.71,160.67,6.2239]
[1721204782735,15.5515,160.76,160.62,15.7744]
[1721204782736,6.222,160.72,160.68,6.2234]
[1721204782933,1.55577514,160.71,160.66,6.2242]
[1721204783250,1.55584386,160.7,160.66,6.2242]
[1721204783544,6.2225,160.71,160.67,6.2239]
[1721204784457,1.55579031,160.74,160.65,6.2245]
[1721204784458,6.2232,160.69,160.65,6.2245]
[1721204784748,15.5536,160.74,160.62,15.7744]
[1721204784749,1.55597567,160.68,160.62,15.7744]
[1721204784954,1.55598676,160.73,160.62,15.7744]
[1721204785145,6.2236,160.68,160.63,6.2254]
[1721204785352,1.55622956,160.67,160.58,23.29902536]
[1721204785653,6.224,160.67,160.62,6.2258]
[1721204785859,1.55624965,160.66,160.62,6.2258]
[1721204786034,6.2236,160.68,160.63,6.2254]
[1721204786231,1.18026467,160.7,160.68,6.2234]
[1721204786441,6.2231,160.7,160.58,21.291]
[1721204786624,1.55591865,160.69,160.65,6.2246]
[1721204786941,1.55591865,160.69,160.6,0.99755398]
[1721204787124,6.2228,160.7,160.61,0.99775604]
[1721204787322,7.77922008,160.69,160.64,6.2247]
[1721204787542,7.40401007,160.68,160.59,65.17]
[1721204787844,6.2228,160.7,160.65,6.2246]
[1721204788042,1.55601533,160.69,160.66,6.2242]
[1721204788251,7.77921533,160.69,160.65,6.2246]
[1721204788471,6.2232,160.69,160.65,6.2246]
[1721204788752,6.2228,160.7,160.65,6.2246]
[1721204788930,1.55601542,160.69,160.65,6.2246]
[1721204789128,1.55601542,160.69,160.6,0.99811142]
[1721204789129,6.2239,160.68,160.6,0.99811142]
[1721204789432,6.2239,160.68,160.63,6.2254]
[1721204789637,1.55601767,160.72,160.64,0.99799659]
[1721204789855,1.55601767,160.72,160.59,65.17]
[1721204789856,6.223,160.7,160.65,6.2243]
[1721204790065,15.8945,160.73,160.64,6.225]
[1721204790066,1.55597845,160.69,160.64,6.225]
[1721204790233,6.2238,160.68,160.63,6.2253]
[1721204790550,6.2227,160.7,160.66,6.2242]
[1721204790742,1.55598462,160.72,160.59,83.89]
[1721204790938,6.2224,160.71,160.66,6.224]
[1721204791248,1.55581689,160.71,160.67,6.2238]
[1721204791464,6.4714,160.74,160.7,6.2224]
[1721204791465,1.55578556,160.73,160.7,6.2224]
[1721204792346,6.2208,160.75,160.71,6.2223]
[1721204792552,7.77662418,160.74,160.7,6.2227]
[1721204792750,6.2212,160.74,160.7,6.2227]
[1721204793563,6.2208,160.75,160.71,6.2223]
[1721204793857,1.55546569,160.77,160.67,0.82306965]
[1721204793858,1.5553987,160.74,160.67,0.82306965]
[1721204794042,7.77736362,160.73,160.68,6.2234]
[1721204794240,6.2217,160.73,160.69,6.223]
[1721204794450,1.55554863,160.76,160.69,6.223]
[1721204794660,6.2216,160.73,160.68,6.2232]
[1721204795035,1.55554863,160.76,160.66,15.3801]